[Event "Titled Tuesday Blitz November 14 Early 2023"]
[White "parintele_chess"]
[Black "Olsson, Linus"]
[BlackFideId "1706098"]
[WhiteElo "2242"]
[BlackElo "2513"]
[Result "0-1"]
[Round "5"]
[TimeControl "180+1"]
[Date "2023.11.14"]
[WhiteClock "0:00:00"]
[BlackClock "0:00:48"]
[Board "153"]

1. d4 {[%clk 0:02:59]}  Nf6 {[%clk 0:02:58]} 2. Bf4 {[%clk 0:02:59]}  g6 {[%clk 0:02:57]} 3. Nf3 {[%clk 0:02:58]}  Bg7 {[%clk 0:02:57]} 4. c3 {[%clk 0:02:58]}  O-O {[%clk 0:02:58]} 5. Nbd2 {[%clk 0:02:58]}  d6 {[%clk 0:02:56]} 6. e4 {[%clk 0:02:58]}  Nfd7 {[%clk 0:02:55]} 7. Be2 {[%clk 0:02:49]}  e5 {[%clk 0:02:55]} 8. dxe5 {[%clk 0:02:46]}  dxe5 {[%clk 0:02:55]} 9. Be3 {[%clk 0:02:46]}  Re8 {[%clk 0:02:50]} 10. O-O {[%clk 0:02:40]}  Nf8 {[%clk 0:02:50]} 11. Qc2 {[%clk 0:02:11]}  Bg4 {[%clk 0:02:49]} 12. h3 {[%clk 0:02:10]}  Bxf3 {[%clk 0:02:45]} 13. Nxf3 {[%clk 0:02:11]}  Qe7 {[%clk 0:02:41]} 14. Rad1 {[%clk 0:02:09]}  Ne6 {[%clk 0:02:39]} 15. Rfe1 {[%clk 0:01:52]}  c6 {[%clk 0:02:38]} 16. b4 {[%clk 0:01:51]}  a6 {[%clk 0:02:36]} 17. a4 {[%clk 0:01:47]}  Nd7 {[%clk 0:02:36]} 18. Nd2 {[%clk 0:01:38]}  Nf4 {[%clk 0:02:35]} 19. Bf1 {[%clk 0:01:34]}  Nf8 {[%clk 0:02:31]} 20. Nc4 {[%clk 0:01:25]}  Rad8 {[%clk 0:02:28]} 21. g3 {[%clk 0:01:08]}  N4e6 {[%clk 0:02:27]} 22. Bb6 {[%clk 0:01:00]}  Rxd1 {[%clk 0:02:25]} 23. Rxd1 {[%clk 0:01:01]}  Nd7 {[%clk 0:02:20]} 24. Be3 {[%clk 0:00:53]}  Rd8 {[%clk 0:02:15]} 25. Rd6 {[%clk 0:00:46]}  b5 {[%clk 0:02:07]} 26. axb5 {[%clk 0:00:37]}  axb5 {[%clk 0:02:08]} 27. Rxd7 {[%clk 0:00:28]}  Qxd7 {[%clk 0:01:59]} 28. Na5 {[%clk 0:00:27]}  h5 {[%clk 0:01:45]} 29. Bb6 {[%clk 0:00:27]}  Rc8 {[%clk 0:01:42]} 30. Be2 {[%clk 0:00:23]}  h4 {[%clk 0:01:41]} 31. Kg2 {[%clk 0:00:20]}  Bh6 {[%clk 0:01:39]} 32. Nb3 {[%clk 0:00:05]}  hxg3 {[%clk 0:01:32]} 33. fxg3 {[%clk 0:00:05]}  Rb8 {[%clk 0:01:32]} 34. Bc5 {[%clk 0:00:05]}  Nxc5 {[%clk 0:01:30]} 35. Nxc5 {[%clk 0:00:06]}  Qd2 {[%clk 0:01:25]} 36. Qxd2 {[%clk 0:00:06]}  Bxd2 {[%clk 0:01:26]} 37. Nd7 {[%clk 0:00:06]}  Ra8 {[%clk 0:01:22]} 38. Nxe5 {[%clk 0:00:06]}  Bxc3 {[%clk 0:01:22]} 39. Nxc6 {[%clk 0:00:06]}  Ra2 {[%clk 0:01:21]} 40. Kf3 {[%clk 0:00:06]}  Ra3 {[%clk 0:01:18]} 41. Kg4 {[%clk 0:00:04]}  Be1 {[%clk 0:01:14]} 42. Bxb5 {[%clk 0:00:03]}  Rxg3+ {[%clk 0:01:13]} 43. Kf4 {[%clk 0:00:04]}  Rxh3 {[%clk 0:01:12]} 44. Bc4 {[%clk 0:00:03]}  Kg7 {[%clk 0:01:10]} 45. Ne5 {[%clk 0:00:02]}  f6 {[%clk 0:00:59]} 46. Nf3 {[%clk 0:00:02]}  Bxb4 {[%clk 0:00:55]} 47. e5 {[%clk 0:00:02]}  fxe5+ {[%clk 0:00:51]} 48. Nxe5 {[%clk 0:00:03]}  Bd6 {[%clk 0:00:49]} 49. Ke4 {[%clk 0:00:02]}  Rh4+ {[%clk 0:00:48]} 50. Kd5 {[%clk 0:00:00]}  Bxe5 {[%clk 0:00:48]} 0-1


[Site "https://www.chess.com"]

[Event "Titled Tuesday Blitz November 14 Early 2023"]
[White "dumbernugget"]
[Black "Shuvalov, Evgenij"]
[BlackFideId "4187237"]
[WhiteElo "2025"]
[BlackElo "2499"]
[Result "0-1"]
[Round "5"]
[TimeControl "180+1"]
[Date "2023.11.14"]
[WhiteClock "0:00:00"]
[BlackClock "0:00:18"]
[Board "155"]

1. d4 {[%clk 0:03:00]}  Nf6 {[%clk 0:02:56]} 2. c4 {[%clk 0:03:00]}  g6 {[%clk 0:02:56]} 3. Nc3 {[%clk 0:03:00]}  d5 {[%clk 0:02:56]} 4. cxd5 {[%clk 0:03:00]}  Nxd5 {[%clk 0:02:57]} 5. Bd2 {[%clk 0:03:01]}  c5 {[%clk 0:02:56]} 6. dxc5 {[%clk 0:02:50]}  Bg7 {[%clk 0:02:55]} 7. Qb3 {[%clk 0:02:38]}  Nf6 {[%clk 0:02:19]} 8. e4 {[%clk 0:02:34]}  O-O {[%clk 0:02:16]} 9. Nf3 {[%clk 0:02:31]}  Nbd7 {[%clk 0:02:11]} 10. Be3 {[%clk 0:02:25]}  Ng4 {[%clk 0:02:10]} 11. Nd5 {[%clk 0:02:03]}  e6 {[%clk 0:01:59]} 12. Nf4 {[%clk 0:01:33]}  Nxe3 {[%clk 0:01:57]} 13. Qxe3 {[%clk 0:01:31]}  Bxb2 {[%clk 0:01:53]} 14. Rb1 {[%clk 0:01:30]}  Qa5+ {[%clk 0:01:51]} 15. Nd2 {[%clk 0:01:29]}  Bc3 {[%clk 0:01:34]} 16. Rb5 {[%clk 0:01:23]}  Qa3 {[%clk 0:01:27]} 17. Ne2 {[%clk 0:00:09]}  Bxd2+ {[%clk 0:01:06]} 18. Qxd2 {[%clk 0:00:09]}  Nxc5 {[%clk 0:01:05]} 19. Nf4 {[%clk 0:00:09]}  Nxe4 {[%clk 0:00:58]} 20. Qc2 {[%clk 0:00:09]}  a6 {[%clk 0:00:33]} 21. Rb3 {[%clk 0:00:05]}  Qa5+ {[%clk 0:00:33]} 22. Ke2 {[%clk 0:00:05]}  Nc5 {[%clk 0:00:19]} 23. Rc3 {[%clk 0:00:04]}  b6 {[%clk 0:00:19]} 24. g3 {[%clk 0:00:04]}  Bb7 {[%clk 0:00:19]} 25. Bg2 {[%clk 0:00:04]}  Bxg2 {[%clk 0:00:19]} 26. Nxg2 {[%clk 0:00:04]}  Rad8 {[%clk 0:00:20]} 27. Rb1 {[%clk 0:00:04]}  Ne4 {[%clk 0:00:18]} 28. Re3 {[%clk 0:00:00]}  Rd2+ {[%clk 0:00:18]} 0-1


[Site "https://www.chess.com"]

[Event "Titled Tuesday Blitz November 14 Early 2023"]
[White "Ingebretsen, Jens E"]
[Black "iJueles"]
[WhiteFideId "1522965"]
[WhiteElo "2690"]
[BlackElo "2356"]
[Result "0-1"]
[Round "5"]
[TimeControl "180+1"]
[Date "2023.11.14"]
[WhiteClock "0:00:49"]
[BlackClock "0:00:34"]
[Board "156"]

1. b3 {[%clk 0:03:00]}  e5 {[%clk 0:02:56]} 2. Bb2 {[%clk 0:03:01]}  Nc6 {[%clk 0:02:55]} 3. e3 {[%clk 0:02:50]}  Nf6 {[%clk 0:02:54]} 4. c4 {[%clk 0:02:50]}  d6 {[%clk 0:02:44]} 5. Nc3 {[%clk 0:02:50]}  g6 {[%clk 0:02:44]} 6. d4 {[%clk 0:02:50]}  Bg7 {[%clk 0:02:44]} 7. d5 {[%clk 0:02:49]}  Nb8 {[%clk 0:02:43]} 8. Nf3 {[%clk 0:02:48]}  O-O {[%clk 0:02:43]} 9. Be2 {[%clk 0:02:48]}  a5 {[%clk 0:02:44]} 10. O-O {[%clk 0:02:48]}  Na6 {[%clk 0:02:44]} 11. Rc1 {[%clk 0:02:48]}  Nc5 {[%clk 0:02:45]} 12. a3 {[%clk 0:02:47]}  Bg4 {[%clk 0:02:42]} 13. b4 {[%clk 0:02:47]}  axb4 {[%clk 0:02:43]} 14. axb4 {[%clk 0:02:48]}  Na6 {[%clk 0:02:43]} 15. Qb3 {[%clk 0:02:48]}  Nd7 {[%clk 0:02:37]} 16. Nd2 {[%clk 0:02:46]}  Bxe2 {[%clk 0:02:31]} 17. Nxe2 {[%clk 0:02:46]}  f5 {[%clk 0:02:20]} 18. f4 {[%clk 0:02:45]}  Re8 {[%clk 0:02:17]} 19. e4 {[%clk 0:02:41]}  exf4 {[%clk 0:02:15]} 20. Bxg7 {[%clk 0:02:41]}  Kxg7 {[%clk 0:02:16]} 21. Nxf4 {[%clk 0:02:42]}  Qf6 {[%clk 0:02:13]} 22. Ne6+ {[%clk 0:02:33]}  Kg8 {[%clk 0:02:09]} 23. exf5 {[%clk 0:02:32]}  Nf8 {[%clk 0:01:50]} 24. Ne4 {[%clk 0:02:23]}  Qe5 {[%clk 0:01:49]} 25. N4g5 {[%clk 0:02:22]}  Nxe6 {[%clk 0:01:47]} 26. Nxe6 {[%clk 0:02:22]}  gxf5 {[%clk 0:01:44]} 27. Rxf5 {[%clk 0:02:20]}  Qxf5 {[%clk 0:01:32]} 28. Rf1 {[%clk 0:02:19]}  Qg6 {[%clk 0:01:30]} 29. Rf3 {[%clk 0:01:50]}  Rxe6 {[%clk 0:01:18]} 30. dxe6 {[%clk 0:01:34]}  Qxe6 {[%clk 0:01:17]} 31. Re3 {[%clk 0:01:34]}  Qf6 {[%clk 0:01:16]} 32. c5+ {[%clk 0:01:34]}  Kh8 {[%clk 0:01:16]} 33. Rf3 {[%clk 0:01:35]}  Qa1+ {[%clk 0:01:14]} 34. Kf2 {[%clk 0:01:32]}  Qd4+ {[%clk 0:01:15]} 35. Qe3 {[%clk 0:01:21]}  Qxe3+ {[%clk 0:01:14]} 36. Rxe3 {[%clk 0:01:22]}  Nxb4 {[%clk 0:01:14]} 37. cxd6 {[%clk 0:01:23]}  cxd6 {[%clk 0:01:13]} 38. Re7 {[%clk 0:01:24]}  b6 {[%clk 0:01:05]} 39. Rb7 {[%clk 0:01:24]}  Ra6 {[%clk 0:01:02]} 40. Kf3 {[%clk 0:01:22]}  Nc6 {[%clk 0:00:52]} 41. Ke4 {[%clk 0:01:19]}  Ra5 {[%clk 0:00:52]} 42. Rxb6 {[%clk 0:01:18]}  Re5+ {[%clk 0:00:52]} 43. Kf4 {[%clk 0:01:18]}  Rc5 {[%clk 0:00:52]} 44. Rb7 {[%clk 0:01:16]}  Kg8 {[%clk 0:00:53]} 45. g4 {[%clk 0:01:16]}  Nd4 {[%clk 0:00:48]} 46. h4 {[%clk 0:01:11]}  Ne6+ {[%clk 0:00:44]} 47. Ke4 {[%clk 0:01:06]}  Re5+ {[%clk 0:00:42]} 48. Kf3 {[%clk 0:01:05]}  Nc5 {[%clk 0:00:35]} 49. Rc7 {[%clk 0:01:03]}  Ne6 {[%clk 0:00:27]} 50. Rd7 {[%clk 0:01:01]}  d5 {[%clk 0:00:27]} 51. g5 {[%clk 0:01:01]}  Nf8 {[%clk 0:00:23]} 52. Rd8 {[%clk 0:00:50]}  Rf5+ {[%clk 0:00:23]} 53. Kg4 {[%clk 0:00:50]}  Re5 {[%clk 0:00:22]} 54. Kf4 {[%clk 0:00:48]}  Re4+ {[%clk 0:00:22]} 55. Kf5 {[%clk 0:00:48]}  Rxh4 {[%clk 0:00:21]} 56. Rxd5 {[%clk 0:00:48]}  Rh3 {[%clk 0:00:21]} 57. Ra5 {[%clk 0:00:46]}  Rf3+ {[%clk 0:00:22]} 58. Kg4 {[%clk 0:00:46]}  Rf7 {[%clk 0:00:23]} 59. Ra8 {[%clk 0:00:44]}  Kg7 {[%clk 0:00:23]} 60. Ra6 {[%clk 0:00:44]}  Re7 {[%clk 0:00:23]} 61. Rb6 {[%clk 0:00:43]}  Ng6 {[%clk 0:00:24]} 62. Rb4 {[%clk 0:00:40]}  Kf7 {[%clk 0:00:23]} 63. Ra4 {[%clk 0:00:39]}  Ne5+ {[%clk 0:00:23]} 64. Kf5 {[%clk 0:00:40]}  Ng6 {[%clk 0:00:23]} 65. Ra5 {[%clk 0:00:38]}  Rd7 {[%clk 0:00:23]} 66. Rb5 {[%clk 0:00:37]}  Ne7+ {[%clk 0:00:23]} 67. Kg4 {[%clk 0:00:37]}  Rd6 {[%clk 0:00:23]} 68. Rb7 {[%clk 0:00:36]}  Re6 {[%clk 0:00:24]} 69. Ra7 {[%clk 0:00:36]}  Kg6 {[%clk 0:00:24]} 70. Ra4 {[%clk 0:00:37]}  Nf5 {[%clk 0:00:23]} 71. Rf4 {[%clk 0:00:36]}  Ne3+ {[%clk 0:00:23]} 72. Kf3 {[%clk 0:00:36]}  Nd5 {[%clk 0:00:24]} 73. Rd4 {[%clk 0:00:35]}  Ne7 {[%clk 0:00:24]} 74. Kg4 {[%clk 0:00:36]}  Nf5 {[%clk 0:00:24]} 75. Ra4 {[%clk 0:00:36]}  Nd6 {[%clk 0:00:23]} 76. Rd4 {[%clk 0:00:34]}  Re4+ {[%clk 0:00:23]} 77. Rxe4 {[%clk 0:00:34]}  Nxe4 {[%clk 0:00:24]} 78. Kf4 {[%clk 0:00:35]}  Nxg5 {[%clk 0:00:24]} 79. Kg4 {[%clk 0:00:36]}  Nf7 {[%clk 0:00:25]} 80. Kh4 {[%clk 0:00:37]}  h5 {[%clk 0:00:26]} 81. Kh3 {[%clk 0:00:37]}  Nh6 {[%clk 0:00:26]} 82. Kh4 {[%clk 0:00:38]}  Nf5+ {[%clk 0:00:27]} 83. Kh3 {[%clk 0:00:39]}  Kg5 {[%clk 0:00:28]} 84. Kh2 {[%clk 0:00:40]}  h4 {[%clk 0:00:28]} 85. Kh3 {[%clk 0:00:40]}  Kh5 {[%clk 0:00:29]} 86. Kh2 {[%clk 0:00:41]}  Kg4 {[%clk 0:00:30]} 87. Kg2 {[%clk 0:00:42]}  h3+ {[%clk 0:00:30]} 88. Kh2 {[%clk 0:00:43]}  Kh4 {[%clk 0:00:31]} 89. Kh1 {[%clk 0:00:44]}  Kg3 {[%clk 0:00:30]} 90. Kg1 {[%clk 0:00:44]}  Nd4 {[%clk 0:00:31]} 91. Kh1 {[%clk 0:00:45]}  Ne6 {[%clk 0:00:31]} 92. Kg1 {[%clk 0:00:46]}  Nf4 {[%clk 0:00:32]} 93. Kh1 {[%clk 0:00:47]}  Nd3 {[%clk 0:00:33]} 94. Kg1 {[%clk 0:00:48]}  h2+ {[%clk 0:00:33]} 95. Kh1 {[%clk 0:00:49]}  Nf2# {[%clk 0:00:34]} 0-1


[Site "https://www.chess.com"]

[Event "Titled Tuesday Blitz November 14 Early 2023"]
[White "Lukovic, Vladimir"]
[Black "Manon-og, Ramon Jr."]
[WhiteFideId "942952"]
[BlackFideId "5200776"]
[WhiteElo "2684"]
[BlackElo "2349"]
[Result "1-0"]
[Round "5"]
[TimeControl "180+1"]
[Date "2023.11.14"]
[WhiteClock "0:00:38"]
[BlackClock "0:00:00"]
[Board "157"]

1. e4 {[%clk 0:03:00]}  c5 {[%clk 0:02:49]} 2. Nf3 {[%clk 0:02:59]}  d6 {[%clk 0:02:44]} 3. b3 {[%clk 0:02:54]}  Nf6 {[%clk 0:02:41]} 4. Bd3 {[%clk 0:02:53]}  Nc6 {[%clk 0:02:40]} 5. c3 {[%clk 0:02:53]}  e5 {[%clk 0:02:40]} 6. Bc2 {[%clk 0:02:53]}  Bg4 {[%clk 0:02:40]} 7. h3 {[%clk 0:02:53]}  Bh5 {[%clk 0:02:39]} 8. d3 {[%clk 0:02:44]}  Be7 {[%clk 0:02:39]} 9. Nbd2 {[%clk 0:02:44]}  O-O {[%clk 0:02:38]} 10. Nf1 {[%clk 0:02:43]}  d5 {[%clk 0:02:38]} 11. Qe2 {[%clk 0:02:42]}  d4 {[%clk 0:02:36]} 12. c4 {[%clk 0:02:37]}  Nb4 {[%clk 0:02:34]} 13. g4 {[%clk 0:02:33]}  Nxc2+ {[%clk 0:02:33]} 14. Qxc2 {[%clk 0:02:33]}  Bg6 {[%clk 0:02:06]} 15. Nxe5 {[%clk 0:02:32]}  Bd6 {[%clk 0:02:06]} 16. Nxg6 {[%clk 0:02:26]}  fxg6 {[%clk 0:02:05]} 17. f4 {[%clk 0:02:23]}  Nd7 {[%clk 0:01:55]} 18. Qh2 {[%clk 0:02:00]}  Qa5+ {[%clk 0:01:35]} 19. Bd2 {[%clk 0:01:54]}  Qa3 {[%clk 0:01:35]} 20. e5 {[%clk 0:01:48]}  Rae8 {[%clk 0:01:34]} 21. Ng3 {[%clk 0:01:41]}  Nxe5 {[%clk 0:01:29]} 22. fxe5 {[%clk 0:01:38]}  Qb2 {[%clk 0:01:14]} 23. Ne4 {[%clk 0:01:14]}  Bxe5 {[%clk 0:01:09]} 24. Qg2 {[%clk 0:01:10]}  Qxa1+ {[%clk 0:01:07]} 25. Ke2 {[%clk 0:01:10]}  Qxa2 {[%clk 0:01:08]} 26. h4 {[%clk 0:01:02]}  Bf4 {[%clk 0:01:03]} 27. Rd1 {[%clk 0:00:57]}  Be3 {[%clk 0:00:56]} 28. Nd6 {[%clk 0:00:41]}  Bxd2+ {[%clk 0:00:17]} 29. Nxe8 {[%clk 0:00:40]}  Rxe8+ {[%clk 0:00:17]} 30. Kf1 {[%clk 0:00:41]}  Rf8+ {[%clk 0:00:15]} 31. Kg1 {[%clk 0:00:39]}  Be3+ {[%clk 0:00:15]} 32. Kh1 {[%clk 0:00:39]}  Qxb3 {[%clk 0:00:09]} 33. Rf1 {[%clk 0:00:37]}  Rxf1+ {[%clk 0:00:00]} 34. Qxf1 {[%clk 0:00:38]} 1-0


[Site "https://www.chess.com"]

[Event "Titled Tuesday Blitz November 14 Early 2023"]
[White "Wu, Derek"]
[Black "Jakubowska, Anna"]
[WhiteFideId "30914558"]
[BlackFideId "1121952"]
[WhiteElo "2667"]
[BlackElo "2343"]
[Result "1-0"]
[Round "5"]
[TimeControl "180+1"]
[Date "2023.11.14"]
[WhiteClock "0:00:24"]
[BlackClock "0:00:01"]
[Board "158"]

1. d4 {[%clk 0:02:59]}  f5 {[%clk 0:02:58]} 2. Nc3 {[%clk 0:02:59]}  d5 {[%clk 0:02:58]} 3. Bf4 {[%clk 0:02:58]}  Nf6 {[%clk 0:02:58]} 4. e3 {[%clk 0:02:59]}  g6 {[%clk 0:02:57]} 5. Nb5 {[%clk 0:02:55]}  Na6 {[%clk 0:02:56]} 6. c4 {[%clk 0:02:55]}  c6 {[%clk 0:02:55]} 7. Nc3 {[%clk 0:02:56]}  Bg7 {[%clk 0:02:53]} 8. Nf3 {[%clk 0:02:53]}  O-O {[%clk 0:02:50]} 9. h3 {[%clk 0:02:42]}  Nc7 {[%clk 0:02:42]} 10. Qb3 {[%clk 0:02:39]}  Ne4 {[%clk 0:02:24]} 11. Bxc7 {[%clk 0:02:09]}  Qxc7 {[%clk 0:02:23]} 12. cxd5 {[%clk 0:02:10]}  Kh8 {[%clk 0:02:16]} 13. Bc4 {[%clk 0:01:59]}  Nxc3 {[%clk 0:02:12]} 14. bxc3 {[%clk 0:01:59]}  cxd5 {[%clk 0:02:11]} 15. Bxd5 {[%clk 0:01:59]}  Bd7 {[%clk 0:01:56]} 16. O-O {[%clk 0:01:55]}  Rab8 {[%clk 0:01:52]} 17. Rac1 {[%clk 0:01:45]}  h6 {[%clk 0:01:47]} 18. Be6 {[%clk 0:01:30]}  Bc6 {[%clk 0:01:38]} 19. d5 {[%clk 0:01:14]}  Be8 {[%clk 0:01:35]} 20. c4 {[%clk 0:01:06]}  b6 {[%clk 0:01:29]} 21. Qa3 {[%clk 0:01:00]}  g5 {[%clk 0:01:18]} 22. c5 {[%clk 0:00:54]}  bxc5 {[%clk 0:01:07]} 23. Rxc5 {[%clk 0:00:54]}  Qb7 {[%clk 0:01:07]} 24. Nd4 {[%clk 0:00:35]}  f4 {[%clk 0:00:44]} 25. Rfc1 {[%clk 0:00:33]}  fxe3 {[%clk 0:00:30]} 26. Qxe3 {[%clk 0:00:33]}  Qb2 {[%clk 0:00:27]} 27. Nf5 {[%clk 0:00:32]}  Rxf5 {[%clk 0:00:08]} 28. Bxf5 {[%clk 0:00:32]}  Bd4 {[%clk 0:00:08]} 29. Qxe7 {[%clk 0:00:24]}  Qxf2+ {[%clk 0:00:07]} 30. Kh1 {[%clk 0:00:24]}  Bxc5 {[%clk 0:00:01]} 31. Qh7# {[%clk 0:00:24]} 1-0


[Site "https://www.chess.com"]

[Event "Titled Tuesday Blitz November 14 Early 2023"]
[White "Godzwon, Iwo"]
[Black "Degtiarev, Evgeny"]
[WhiteFideId "21802483"]
[BlackFideId "4149610"]
[WhiteElo "2648"]
[BlackElo "2341"]
[Result "0-1"]
[Round "5"]
[TimeControl "180+1"]
[Date "2023.11.14"]
[WhiteClock "0:00:29"]
[BlackClock "0:00:04"]
[Board "159"]

1. c4 {[%clk 0:03:00]}  e5 {[%clk 0:02:59]} 2. g3 {[%clk 0:02:49]}  Nf6 {[%clk 0:03:00]} 3. Bg2 {[%clk 0:02:50]}  Nc6 {[%clk 0:03:00]} 4. Nc3 {[%clk 0:02:49]}  Bc5 {[%clk 0:03:00]} 5. e3 {[%clk 0:02:45]}  d5 {[%clk 0:03:01]} 6. Nxd5 {[%clk 0:02:45]}  Nxd5 {[%clk 0:03:00]} 7. cxd5 {[%clk 0:02:42]}  Nb4 {[%clk 0:03:01]} 8. d4 {[%clk 0:02:42]}  exd4 {[%clk 0:03:00]} 9. exd4 {[%clk 0:02:43]}  Be7 {[%clk 0:03:00]} 10. Ne2 {[%clk 0:02:42]}  Nxd5 {[%clk 0:02:53]} 11. O-O {[%clk 0:02:42]}  O-O {[%clk 0:02:53]} 12. Qb3 {[%clk 0:02:40]}  c6 {[%clk 0:02:49]} 13. Nc3 {[%clk 0:02:28]}  Nxc3 {[%clk 0:02:31]} 14. bxc3 {[%clk 0:02:29]}  Bf6 {[%clk 0:02:02]} 15. a4 {[%clk 0:02:24]}  Re8 {[%clk 0:01:35]} 16. a5 {[%clk 0:02:20]}  a6 {[%clk 0:01:34]} 17. Bf4 {[%clk 0:02:18]}  Re7 {[%clk 0:01:32]} 18. Rfe1 {[%clk 0:02:11]}  Be6 {[%clk 0:01:32]} 19. Qb4 {[%clk 0:02:05]}  Rd7 {[%clk 0:01:31]} 20. Rxe6 {[%clk 0:01:50]}  fxe6 {[%clk 0:01:31]} 21. Bh3 {[%clk 0:01:51]}  Re7 {[%clk 0:01:30]} 22. Re1 {[%clk 0:01:47]}  Qd5 {[%clk 0:01:25]} 23. Bd6 {[%clk 0:01:40]}  Ree8 {[%clk 0:01:24]} 24. Bc5 {[%clk 0:01:38]}  e5 {[%clk 0:01:16]} 25. Bg2 {[%clk 0:01:38]}  Qf7 {[%clk 0:01:13]} 26. Bf1 {[%clk 0:01:32]}  Kh8 {[%clk 0:01:08]} 27. Bc4 {[%clk 0:01:30]}  Qd7 {[%clk 0:01:07]} 28. Rd1 {[%clk 0:01:23]}  exd4 {[%clk 0:01:04]} 29. cxd4 {[%clk 0:01:24]}  Be7 {[%clk 0:00:56]} 30. Rb1 {[%clk 0:01:22]}  Bxc5 {[%clk 0:00:54]} 31. dxc5 {[%clk 0:01:23]}  Re4 {[%clk 0:00:46]} 32. Qb3 {[%clk 0:01:16]}  Rae8 {[%clk 0:00:41]} 33. Kg2 {[%clk 0:01:13]}  Qd4 {[%clk 0:00:27]} 34. Bf7 {[%clk 0:01:05]}  Rf8 {[%clk 0:00:26]} 35. Rd1 {[%clk 0:01:03]}  Qf6 {[%clk 0:00:22]} 36. Rd7 {[%clk 0:00:55]}  Re7 {[%clk 0:00:20]} 37. Rxe7 {[%clk 0:00:53]}  Qxe7 {[%clk 0:00:20]} 38. Be6 {[%clk 0:00:53]}  Qxc5 {[%clk 0:00:19]} 39. f4 {[%clk 0:00:52]}  Qe7 {[%clk 0:00:13]} 40. f5 {[%clk 0:00:52]}  h6 {[%clk 0:00:12]} 41. h4 {[%clk 0:00:50]}  Rd8 {[%clk 0:00:11]} 42. Qc3 {[%clk 0:00:50]}  Qf6 {[%clk 0:00:09]} 43. Qb4 {[%clk 0:00:50]}  Qd4 {[%clk 0:00:08]} 44. Qxb7 {[%clk 0:00:48]}  Qd2+ {[%clk 0:00:07]} 45. Kh3 {[%clk 0:00:49]}  Qd1 {[%clk 0:00:06]} 46. Qxc6 {[%clk 0:00:48]}  h5 {[%clk 0:00:05]} 47. Bc4 {[%clk 0:00:33]}  Qg4+ {[%clk 0:00:04]} 48. Kg2 {[%clk 0:00:30]}  Rd2+ {[%clk 0:00:04]} 49. Kf1 {[%clk 0:00:29]}  Qd1# {[%clk 0:00:04]} 0-1


[Site "https://www.chess.com"]

[Event "Titled Tuesday Blitz November 14 Early 2023"]
[White "Fernandez Siles, Luis"]
[Black "Gubajdullin, Alexei"]
[WhiteFideId "2209420"]
[BlackFideId "4141202"]
[WhiteElo "2338"]
[BlackElo "2646"]
[Result "0-1"]
[Round "5"]
[TimeControl "180+1"]
[Date "2023.11.14"]
[WhiteClock "0:01:35"]
[BlackClock "0:01:52"]
[Board "160"]

1. e4 {[%clk 0:03:00]}  g6 {[%clk 0:02:55]} 2. Nc3 {[%clk 0:02:59]}  Bg7 {[%clk 0:02:53]} 3. f4 {[%clk 0:02:58]}  c5 {[%clk 0:02:52]} 4. Nf3 {[%clk 0:02:58]}  d6 {[%clk 0:02:51]} 5. Bb5+ {[%clk 0:02:56]}  Bd7 {[%clk 0:02:50]} 6. Bxd7+ {[%clk 0:02:56]}  Nxd7 {[%clk 0:02:49]} 7. d3 {[%clk 0:02:56]}  Ngf6 {[%clk 0:02:48]} 8. O-O {[%clk 0:02:56]}  O-O {[%clk 0:02:47]} 9. Qe1 {[%clk 0:02:55]}  Rb8 {[%clk 0:02:46]} 10. a4 {[%clk 0:02:50]}  a6 {[%clk 0:02:42]} 11. Qh4 {[%clk 0:02:50]}  b5 {[%clk 0:02:40]} 12. axb5 {[%clk 0:02:51]}  axb5 {[%clk 0:02:40]} 13. f5 {[%clk 0:02:49]}  b4 {[%clk 0:02:39]} 14. Ne2 {[%clk 0:02:43]}  e6 {[%clk 0:02:25]} 15. fxe6 {[%clk 0:02:25]}  fxe6 {[%clk 0:02:24]} 16. Ng5 {[%clk 0:02:25]}  Qe7 {[%clk 0:02:23]} 17. Nxh7 {[%clk 0:02:25]}  Rf7 {[%clk 0:01:56]} 18. Ng5 {[%clk 0:02:19]}  Rff8 {[%clk 0:01:56]} 19. Ng3 {[%clk 0:01:54]}  Nh5 {[%clk 0:01:54]} 20. Rxf8+ {[%clk 0:01:46]}  Rxf8 {[%clk 0:01:54]} 21. Nxh5 {[%clk 0:01:46]}  Bd4+ {[%clk 0:01:53]} 22. Be3 {[%clk 0:01:40]}  Bxe3+ {[%clk 0:01:53]} 23. Kh1 {[%clk 0:01:35]}  Bxg5 {[%clk 0:01:52]} 0-1


[Site "https://www.chess.com"]

[Event "Titled Tuesday Blitz November 14 Early 2023"]
[White "Kleiman, Jake"]
[Black "Lopez Del Alamo, Antonio"]
[WhiteFideId "2020041"]
[BlackFideId "2227339"]
[WhiteElo "2624"]
[BlackElo "2325"]
[Result "1-0"]
[Round "5"]
[TimeControl "180+1"]
[Date "2023.11.14"]
[WhiteClock "0:00:17"]
[BlackClock "0:00:00"]
[Board "163"]

1. Nf3 {[%clk 0:03:00]}  Nf6 {[%clk 0:02:41]} 2. g3 {[%clk 0:03:01]}  g6 {[%clk 0:02:41]} 3. Bg2 {[%clk 0:03:01]}  Bg7 {[%clk 0:02:41]} 4. O-O {[%clk 0:03:02]}  O-O {[%clk 0:02:41]} 5. d3 {[%clk 0:03:03]}  d5 {[%clk 0:02:41]} 6. Nbd2 {[%clk 0:03:04]}  d4 {[%clk 0:02:42]} 7. e4 {[%clk 0:03:04]}  dxe3 {[%clk 0:02:41]} 8. fxe3 {[%clk 0:03:05]}  c5 {[%clk 0:02:42]} 9. e4 {[%clk 0:03:04]}  Nc6 {[%clk 0:02:41]} 10. Nc4 {[%clk 0:02:57]}  Ng4 {[%clk 0:02:37]} 11. Kh1 {[%clk 0:02:35]}  Be6 {[%clk 0:02:32]} 12. Ne3 {[%clk 0:02:23]}  Nxe3 {[%clk 0:02:30]} 13. Bxe3 {[%clk 0:02:21]}  b6 {[%clk 0:02:29]} 14. c3 {[%clk 0:02:09]}  Qd7 {[%clk 0:02:10]} 15. Qe2 {[%clk 0:02:07]}  Bg4 {[%clk 0:02:04]} 16. Rad1 {[%clk 0:02:04]}  Bxf3 {[%clk 0:02:03]} 17. Bxf3 {[%clk 0:01:58]}  Rad8 {[%clk 0:02:04]} 18. Bg2 {[%clk 0:01:55]}  Qe6 {[%clk 0:01:45]} 19. a3 {[%clk 0:01:48]}  Rd7 {[%clk 0:01:35]} 20. h3 {[%clk 0:01:39]}  Rfd8 {[%clk 0:01:34]} 21. Kh2 {[%clk 0:01:34]}  Rd6 {[%clk 0:01:15]} 22. Bf4 {[%clk 0:01:27]}  Be5 {[%clk 0:01:12]} 23. Bh6 {[%clk 0:01:20]}  Qd7 {[%clk 0:01:09]} 24. Rf3 {[%clk 0:01:20]}  e6 {[%clk 0:01:08]} 25. Bg5 {[%clk 0:01:18]}  Rc8 {[%clk 0:01:03]} 26. h4 {[%clk 0:01:17]}  Kg7 {[%clk 0:00:58]} 27. Qe3 {[%clk 0:01:12]}  f6 {[%clk 0:00:56]} 28. Bh6+ {[%clk 0:01:11]}  Kf7 {[%clk 0:00:57]} 29. Qf2 {[%clk 0:01:03]}  Rd8 {[%clk 0:00:54]} 30. Bg5 {[%clk 0:00:58]}  Qe7 {[%clk 0:00:49]} 31. Bf1 {[%clk 0:00:39]}  Kg7 {[%clk 0:00:48]} 32. Be3 {[%clk 0:00:38]}  h6 {[%clk 0:00:45]} 33. Be2 {[%clk 0:00:38]}  g5 {[%clk 0:00:45]} 34. Kh3 {[%clk 0:00:34]}  Bxc3 {[%clk 0:00:17]} 35. bxc3 {[%clk 0:00:33]}  Ne5 {[%clk 0:00:17]} 36. g4 {[%clk 0:00:31]}  Nxf3 {[%clk 0:00:14]} 37. Qxf3 {[%clk 0:00:32]}  e5 {[%clk 0:00:13]} 38. Rf1 {[%clk 0:00:31]}  b5 {[%clk 0:00:10]} 39. Rb1 {[%clk 0:00:30]}  Qc7 {[%clk 0:00:09]} 40. Qf5 {[%clk 0:00:27]}  c4 {[%clk 0:00:08]} 41. d4 {[%clk 0:00:26]}  exd4 {[%clk 0:00:08]} 42. Bxd4 {[%clk 0:00:26]}  Rxd4 {[%clk 0:00:09]} 43. cxd4 {[%clk 0:00:26]}  Rxd4 {[%clk 0:00:08]} 44. Qxb5 {[%clk 0:00:26]}  c3 {[%clk 0:00:08]} 45. Qb7 {[%clk 0:00:26]}  Rd7 {[%clk 0:00:07]} 46. Qxc7 {[%clk 0:00:26]}  Rxc7 {[%clk 0:00:08]} 47. Rc1 {[%clk 0:00:26]}  Kf7 {[%clk 0:00:07]} 48. Bb5 {[%clk 0:00:25]}  Ke6 {[%clk 0:00:06]} 49. Kg3 {[%clk 0:00:23]}  Ke5 {[%clk 0:00:07]} 50. Kf3 {[%clk 0:00:23]}  Kd4 {[%clk 0:00:06]} 51. hxg5 {[%clk 0:00:20]}  hxg5 {[%clk 0:00:04]} 52. a4 {[%clk 0:00:18]}  c2 {[%clk 0:00:04]} 53. Ke2 {[%clk 0:00:17]}  Kc3 {[%clk 0:00:03]} 54. Bd3 {[%clk 0:00:17]}  Kb2 {[%clk 0:00:00]} 55. Kd2 {[%clk 0:00:17]} 1-0


[Site "https://www.chess.com"]